[Event "WYCC 2018 G14"]
[Site "Halkidiki"]
[Date "2018.10.23"]
[Round "5"]
[White "Figueroa Bernal, Julia Dennis"]
[Black "Tamrazyan, Gohar"]
[Result "1/2-1/2"]
[ECO "B32"]
[WhiteElo "1650"]
[BlackElo "1824"]
[Annotator "NA"]
[PlyCount "76"]
[EventDate "2018.10.20"]
[EventType "swiss"]
[EventCountry "GRE"]
[SourceTitle "playchess.com"]
[Source "ChessBase"]
[SourceQuality "1"]
[TimeControl "40/5400+30:1800+30"]

1. e4 {[%emt 0:00:00]} c5 {[%emt 0:00:00]} 2. Nf3 {[%emt 0:00:00]} Nc6 {[%emt 0:00:00]} 3. d4 {[%emt 0:00:00]} cxd4 {[%emt 0:00:00]} 4. Nxd4 {[%emt 0:00:00]} e5 {[%emt 0:00:00]} 5. Nb5 {[%emt 0:01:06]} d6 {[%emt 0:00:00]} 6. c4 {[%emt 0:01:01]} Nf6 {[%emt 0:02:35]} 7. N1c3 {[%emt 0:07:06]} a6 {[%emt 0:01:23]} 8. Na3 {[%emt 0:00:08]} Be7 {[%emt 0:08:30]} 9. Nc2 {[%emt 0:02:56]} O-O {[%emt 0:01:29]} 10. Be2 {[%emt 0:00:32]} Be6 {[%emt 0:07:39]} 11. O-O {[%emt 0:01:24]} Nd7 {[%emt 0:03:47]} 12. Ne3 {[%emt 0:03:10]} Nc5 {[%emt 0:16:16]} 13. f3 {[%emt 0:04:17]} Bg5 {[%emt 0:07:25]} 14. Ned5 {[%emt 0:03:10]} f5 {[%emt 0:03:10]} 15. Bxg5 {[%emt 0:00:25]} Qxg5 {[%emt 0:00:50]} 16. Nc7 {[%emt 0:01:46]} Rad8 {[%emt 0:00:28]} 17. Nxe6 {[%emt 0:01:41]} Nxe6 {[%emt 0:00:14]} 18. Qd5 {[%emt 0:02:46]} Ncd4 {[%emt 0:02:51]} 19. f4 {[%emt 0:07:39]} exf4 {[%emt 0:11:00]} 20. Rad1 {[%emt 0:01:16]} Qf6 {[%emt 0:01:56]} 21. exf5 {[%emt 0:01:28]} Nxe2+ {[%emt 0:01:19]} 22. Nxe2 {[%emt 0:00:10]} Qxf5 {[%emt 0:00:38]} 23. Rxf4 {[%emt 0:02:59]} Qxd5 {[%emt 0:03:59]} 24. Rxf8+ {[%emt 0:00:09]} Kxf8 {[%emt 0:00:27]} 25. Rxd5 {[%emt 0:00:49]} Ke7 {[%emt 0:03:00]} 26. Nd4 {[%emt 0:04:40]} g6 {[%emt 0:01:48]} 27. Nxe6 {[%emt 0:02:31]} Kxe6 {[%emt 0:00:02]} 28. Rd3 {[%emt 0:01:13]} d5 {[%emt 0:02:49]} 29. cxd5+ {[%emt 0:04:30]} Rxd5 {[%emt 0:00:04]} 30. Rxd5 {[%emt 0:00:10]} Kxd5 {[%emt 0:00:04]} 31. Kf2 {[%emt 0:00:13]} Kd4 {[%emt 0:01:17]} 32. Ke2 {[%emt 0:00:13]} h6 {[%emt 0:00:58]} 33. Kd2 {[%emt 0:00:19]} b5 {[%emt 0:00:57]} 34. a3 {[%emt 0:01:07]} a5 {[%emt 0:02:18]} 35. b3 {[%emt 0:00:25]} b4 {[%emt 0:04:18]} 36. a4 {[%emt 0:01:31]} h5 {[%emt 0:00:19]} 37. h4 {[%emt 0:00:39]} Ke4 {[%emt 0:00:14]} 38. Ke2 {[%emt 0:00:12]} Kd4 {[%emt 0:05:42]} 1/2-1/2

[Event "WYCC 2018 G14"]
[Site "Halkidiki"]
[Date "2018.10.23"]
[Round "5"]
[White "Tien, Sophie"]
[Black "Murzina, Agata"]
[Result "1-0"]
[ECO "C11"]
[WhiteElo "1648"]
[BlackElo "1768"]
[Annotator "NA"]
[PlyCount "127"]
[EventDate "2018.10.20"]
[EventType "swiss"]
[EventCountry "GRE"]
[SourceTitle "playchess.com"]
[Source "ChessBase"]
[SourceQuality "1"]
[TimeControl "40/5400+30:1800+30"]

1. e4 {[%emt 0:00:00]} e6 {[%emt 0:00:00]} 2. d4 {[%emt 0:00:00]} d5 {[%emt 0:00:00]} 3. Nc3 {[%emt 0:00:01]} Nf6 {[%emt 0:00:00]} 4. exd5 {[%emt 0:00:12]} exd5 {[%emt 0:03:51]} 5. Bd3 {[%emt 0:00:17]} Be7 {[%emt 0:05:39]} 6. Nge2 {[%emt 0:01:20]} O-O {[%emt 0:01:51]} 7. O-O {[%emt 0:01:13]} Re8 {[%emt 0:00:56]} 8. Ng3 {[%emt 0:01:36]} c6 {[%emt 0:02:06]} 9. Bg5 {[%emt 0:05:51]} Nbd7 {[%emt 0:02:16]} 10. Qf3 {[%emt 0:04:16]} h6 {[%emt 0:02:18]} 11. Bf4 {[%emt 0:02:26]} Qb6 {[%emt 0:02:03]} 12. Nce2 {[%emt 0:03:44]} Qxb2 {[%emt 0:05:17]} 13. Nf5 {[%emt 0:03:14]} Bf8 {[%emt 0:00:06]} 14. Rfb1 {[%emt 0:07:01]} Qa3 {[%emt 0:00:16]} 15. Neg3 {[%emt 0:15:09]} Qa4 {[%emt 0:19:24]} 16. Nxg7 {[%emt 0:13:37]} Bxg7 {[%emt 0:05:53]} 17. Nf5 {[%emt 0:01:57]} Nf8 {[%emt 0:03:05]} 18. Nxg7 {[%emt 0:04:30]} Kxg7 {[%emt 0:03:25]} 19. Bxh6+ {[%emt 0:03:46]} Kxh6 {[%emt 0:02:40]} 20. Qxf6+ {[%emt 0:00:11]} Ng6 {[%emt 0:00:11]} 21. Qxf7 {[%emt 0:02:35]} Re6 {[%emt 0:00:13]} 22. c3 {[%emt 0:08:31]} Qa3 {[%emt 0:00:44]} 23. Bxg6 {[%emt 0:00:59]} Rxg6 {[%emt 0:00:07]} 24. Qf4+ {[%emt 0:00:49]} Kh7 {[%emt 0:01:07]} 25. Re1 {[%emt 0:04:33]} Be6 {[%emt 0:00:46]} 26. Rxe6 {[%emt 0:00:59]} Rxe6 {[%emt 0:01:01]} 27. Qf7+ {[%emt 0:00:08]} Kh8 {[%emt 0:00:03]} 28. Qxe6 {[%emt 0:00:14]} Qxc3 {[%emt 0:00:17]} 29. Qe5+ {[%emt 0:00:12]} Kg8 {[%emt 0:00:05]} 30. Re1 {[%emt 0:00:37]} Rf8 {[%emt 0:00:16]} 31. h4 {[%emt 0:01:37]} Qd2 {[%emt 0:00:29]} 32. f3 {[%emt 0:02:14]} a6 {[%emt 0:06:48]} 33. Re2 {[%emt 0:02:37]} Qc1+ {[%emt 0:01:16]} 34. Kh2 {[%emt 0:00:39]} Qf4+ {[%emt 0:00:35]} 35. Kh3 {[%emt 0:01:19]} Qc1 {[%emt 0:00:59]} 36. Re1 {[%emt 0:01:39]} Qd2 {[%emt 0:00:19]} 37. Qg3+ {[%emt 0:01:16]} Kh8 {[%emt 0:00:14]} 38. Re5 {[%emt 0:00:58]} Qh6 {[%emt 0:00:36]} 39. Qg4 {[%emt 0:01:10]} Rf4 {[%emt 0:00:47]} 40. Rh5 {[%emt 0:00:00]} Rxg4 {[%emt 0:00:00]} 41. Rxh6+ {[%emt 0:01:05]} Kg7 {[%emt 0:00:35]} 42. Kxg4 {[%emt 0:01:02]} Kxh6 {[%emt 0:00:05]} 43. Kf4 {[%emt 0:00:50]} Kh5 {[%emt 0:00:46]} 44. g4+ {[%emt 0:00:48]} Kh6 {[%emt 0:00:22]} 45. Ke5 {[%emt 0:01:46]} a5 {[%emt 0:00:06]} 46. Kd6 {[%emt 0:03:44]} a4 {[%emt 0:00:07]} 47. Kc5 {[%emt 0:01:23]} b5 {[%emt 0:00:16]} 48. f4 {[%emt 0:01:15]} Kg6 {[%emt 0:00:09]} 49. h5+ {[%emt 0:01:02]} Kh6 {[%emt 0:00:12]} 50. a3 {[%emt 0:00:50]} Kh7 {[%emt 0:00:06]} 51. g5 {[%emt 0:00:13]} Kg7 {[%emt 0:00:19]} 52. f5 {[%emt 0:00:07]} Kg8 {[%emt 0:00:38]} 53. h6 {[%emt 0:01:02]} Kh7 {[%emt 0:00:07]} 54. Kb4 {[%emt 0:00:07]} Kg8 {[%emt 0:00:15]} 55. g6 {[%emt 0:00:15]} Kh8 {[%emt 0:00:17]} 56. f6 {[%emt 0:00:15]} Kg8 {[%emt 0:00:05]} 57. f7+ {[%emt 0:00:21]} Kf8 {[%emt 0:00:02]} 58. h7 {[%emt 0:00:11]} c5+ {[%emt 0:00:06]} 59. Kxc5 {[%emt 0:00:09]} b4 {[%emt 0:00:04]} 60. Kxb4 {[%emt 0:00:05]} Kg7 {[%emt 0:00:09]} 61. h8=Q+ {[%emt 0:00:17]} Kxg6 {[%emt 0:00:06]} 62. f8=R {[%emt 0:00:25]} Kg5 {[%emt 0:00:10]} 63. Qg7+ {[%emt 0:00:06]} Kh5 {[%emt 0:00:05]} 64. Rh8# {[%emt 0:00:04]} 1-0

[Event "WYCC 2018 G14"]
[Site "Halkidiki"]
[Date "2018.10.23"]
[Round "5"]
[White "Kumar, Arya"]
[Black "Baiburina, Kamilla"]
[Result "0-1"]
[ECO "C42"]
[WhiteElo "1619"]
[BlackElo "1907"]
[Annotator "NA"]
[PlyCount "66"]
[EventDate "2018.10.20"]
[EventType "swiss"]
[EventCountry "GRE"]
[SourceTitle "playchess.com"]
[Source "ChessBase"]
[SourceQuality "1"]
[TimeControl "40/5400+30:1800+30"]

1. e4 {[%emt 0:00:00]} e5 {[%emt 0:00:00]} 2. Nf3 {[%emt 0:00:00]} Nf6 {[%emt 0:00:00]} 3. Nxe5 {[%emt 0:00:00]} d6 {[%emt 0:00:00]} 4. Nf3 {[%emt 0:00:00]} Nxe4 {[%emt 0:00:00]} 5. Nc3 {[%emt 0:00:00]} Nxc3 {[%emt 0:00:02]} 6. dxc3 {[%emt 0:00:03]} Be7 {[%emt 0:00:15]} 7. Be3 {[%emt 0:00:07]} O-O {[%emt 0:00:31]} 8. Qd2 {[%emt 0:00:06]} Nc6 {[%emt 0:00:27]} 9. O-O-O {[%emt 0:00:28]} Ne5 {[%emt 0:00:32]} 10. h4 {[%emt 0:03:00]} Be6 {[%emt 0:04:49]} 11. Bg5 {[%emt 0:06:35]} f6 {[%emt 0:15:16]} 12. Bf4 {[%emt 0:07:33]} c6 {[%emt 0:04:56]} 13. Nd4 {[%emt 0:09:44]} Bd7 {[%emt 0:05:29]} 14. c4 {[%emt 0:08:58]} a6 {[%emt 0:05:10]} 15. f3 {[%emt 0:08:41]} b5 {[%emt 0:03:54]} 16. g4 {[%emt 0:05:26]} bxc4 {[%emt 0:02:24]} 17. Nf5 {[%emt 0:02:29]} d5 {[%emt 0:02:28]} 18. Bh3 {[%emt 0:12:16]} Rb8 {[%emt 0:09:38]} 19. Qe3 {[%emt 0:07:06]} Bxf5 {[%emt 0:08:50]} 20. gxf5 {[%emt 0:02:38]} Qb6 {[%emt 0:02:00]} 21. Qxb6 {[%emt 0:04:14]} Rxb6 {[%emt 0:00:15]} 22. Be3 {[%emt 0:01:55]} Rb5 {[%emt 0:02:10]} 23. f4 {[%emt 0:01:16]} Nf7 {[%emt 0:01:35]} 24. Bf1 {[%emt 0:03:27]} Rfb8 {[%emt 0:03:15]} 25. b3 {[%emt 0:02:07]} Nd6 {[%emt 0:05:09]} 26. Bh3 {[%emt 0:06:20]} Ne4 {[%emt 0:01:24]} 27. Kb2 {[%emt 0:01:15]} Ra5 {[%emt 0:03:56]} 28. Bd4 {[%emt 0:04:44]} Ba3+ {[%emt 0:02:11]} 29. Ka1 {[%emt 0:00:19]} c5 {[%emt 0:01:43]} 30. Be3 {[%emt 0:00:43]} Bb4 {[%emt 0:01:47]} 31. Rdg1 {[%emt 0:01:25]} Nc3 {[%emt 0:02:27]} 32. a4 {[%emt 0:01:15]} Nxa4 {[%emt 0:00:12]} 33. Kb1 {[%emt 0:00:26]} Nc3+ {[%emt 0:01:04]} 0-1

[Event "WYCC 2018 G14"]
[Site "Halkidiki"]
[Date "2018.10.23"]
[Round "5"]
[White "Alimova, Sevinch"]
[Black "Bellahcene, Sofia"]
[Result "1/2-1/2"]
[ECO "D50"]
[WhiteElo "1596"]
[BlackElo "1764"]
[Annotator "NA"]
[PlyCount "113"]
[EventDate "2018.10.20"]
[EventType "swiss"]
[EventCountry "GRE"]
[SourceTitle "playchess.com"]
[Source "ChessBase"]
[SourceQuality "1"]
[TimeControl "40/5400+30:1800+30"]

1. d4 {[%emt 0:00:00]} d5 {[%emt 0:00:00]} 2. c4 {[%emt 0:00:00]} e6 {[%emt 0:00:00]} 3. Nc3 {[%emt 0:00:00]} Nf6 {[%emt 0:00:01]} 4. Bg5 {[%emt 0:00:49]} c6 {[%emt 0:00:08]} 5. e3 {[%emt 0:00:55]} Be7 {[%emt 0:00:08]} 6. Nf3 {[%emt 0:00:34]} Nbd7 {[%emt 0:00:11]} 7. Bd3 {[%emt 0:00:57]} dxc4 {[%emt 0:00:17]} 8. Bxc4 {[%emt 0:00:14]} b5 {[%emt 0:00:03]} 9. Bd3 {[%emt 0:02:07]} a6 {[%emt 0:00:16]} 10. O-O {[%emt 0:04:42]} c5 {[%emt 0:00:34]} 11. dxc5 {[%emt 0:08:01]} Nxc5 {[%emt 0:01:35]} 12. Bc2 {[%emt 0:02:25]} Qb6 {[%emt 0:09:49]} 13. Qe2 {[%emt 0:10:27]} Bb7 {[%emt 0:06:48]} 14. h3 {[%emt 0:06:50]} h6 {[%emt 0:02:05]} 15. Bh4 {[%emt 0:02:06]} O-O {[%emt 0:01:31]} 16. Rfd1 {[%emt 0:07:44]} Rfe8 {[%emt 0:02:32]} 17. Nd4 {[%emt 0:06:38]} Nd5 {[%emt 0:07:13]} 18. Nxd5 {[%emt 0:06:17]} Bxd5 {[%emt 0:01:09]} 19. Bxe7 {[%emt 0:00:25]} Rxe7 {[%emt 0:01:08]} 20. e4 {[%emt 0:02:08]} Bb7 {[%emt 0:05:43]} 21. Qe3 {[%emt 0:06:50]} Rc7 {[%emt 0:17:54]} 22. Rd2 {[%emt 0:11:48]} Nd7 {[%emt 0:02:30]} 23. Rad1 Ne5 24. Bb3 {[%emt 0:01:52]} Nc4 {[%emt 0:02:56]} 25. Bxc4 Rxc4 26. b3 {[%emt 0:01:51]} Rcc8 {[%emt 0:02:03]} 27. f3 {[%emt 0:02:41]} b4 {[%emt 0:02:29]} 28. Nf5 {[%emt 0:01:31]} Qxe3+ {[%emt 0:02:43]} 29. Nxe3 {[%emt 0:00:06]} a5 {[%emt 0:00:19]} 30. Nc4 {[%emt 0:02:03]} Rc5 {[%emt 0:02:57]} 31. Rd7 {[%emt 0:05:48]} Ba6 {[%emt 0:05:42]} 32. Nb6 {[%emt 0:02:59]} Rb8 {[%emt 0:03:08]} 33. Rd8+ {[%emt 0:03:20]} Rxd8 {[%emt 0:00:15]} 34. Rxd8+ {[%emt 0:00:02]} Kh7 {[%emt 0:00:38]} 35. Rd2 {[%emt 0:00:29]} Rc6 {[%emt 0:00:40]} 36. Na4 {[%emt 0:00:57]} Bb5 {[%emt 0:00:55]} 37. Nb2 {[%emt 0:00:30]} Kg6 {[%emt 0:01:21]} 38. Kf2 {[%emt 0:00:37]} Rc3 {[%emt 0:00:36]} 39. Nd1 {[%emt 0:01:52]} Rc1 {[%emt 0:02:15]} 40. Ne3 {[%emt 0:00:00]} h5 {[%emt 0:00:00]} 41. Rc2 {[%emt 0:01:41]} Rxc2+ {[%emt 0:07:08]} 42. Nxc2 {[%emt 0:02:39]} Bd3 {[%emt 0:00:05]} 43. Nd4 {[%emt 0:00:24]} Bb1 {[%emt 0:04:17]} 44. Nc6 {[%emt 0:00:18]} Bxa2 {[%emt 0:00:41]} 45. Nxa5 {[%emt 0:00:08]} f5 {[%emt 0:01:27]} 46. exf5+ {[%emt 0:03:01]} Kxf5 {[%emt 0:00:15]} 47. Nc6 {[%emt 0:01:44]} e5 {[%emt 0:01:37]} 48. Nxb4 {[%emt 0:03:22]} Bxb3 {[%emt 0:00:17]} 49. Nd3 {[%emt 0:02:41]} h4 {[%emt 0:02:33]} 50. Ke3 {[%emt 0:01:50]} Bc4 {[%emt 0:01:42]} 51. Ne1 {[%emt 0:00:21]} Bb5 {[%emt 0:01:38]} 52. Nc2 {[%emt 0:00:50]} Bc6 {[%emt 0:06:55]} 53. Ne1 {[%emt 0:02:42]} g5 {[%emt 0:01:29]} 54. Nc2 {[%emt 0:00:53]} Bb7 {[%emt 0:00:27]} 55. Ne1 {[%emt 0:01:36]} e4 {[%emt 0:00:39]} 56. fxe4+ {[%emt 0:03:16]} Bxe4 {[%emt 0:00:33]} 57. Nf3 {[%emt 0:00:28] Ke5 Kxe4+} 1/2-1/2

[Event "WYCC 2018 G14"]
[Site "Halkidiki"]
[Date "2018.10.23"]
[Round "5"]
[White "Hoshino, Meilin"]
[Black "Somton, Anita"]
[Result "0-1"]
[ECO "D63"]
[WhiteElo "1533"]
[BlackElo "1787"]
[Annotator "NA"]
[PlyCount "86"]
[EventDate "2018.10.20"]
[EventType "swiss"]
[EventCountry "GRE"]
[SourceTitle "playchess.com"]
[Source "ChessBase"]
[SourceQuality "1"]
[TimeControl "40/5400+30:1800+30"]

1. d4 {[%emt 0:00:00]} d5 {[%emt 0:00:00]} 2. c4 {[%emt 0:00:00]} e6 {[%emt 0:00:11]} 3. Nc3 {[%emt 0:00:14]} Nf6 {[%emt 0:00:23]} 4. Bg5 {[%emt 0:01:23]} Nbd7 {[%emt 0:01:34]} 5. Nf3 {[%emt 0:00:43]} Be7 {[%emt 0:00:00]} 6. e3 {[%emt 0:00:44]} O-O {[%emt 0:00:45]} 7. Rc1 {[%emt 0:01:21]} a6 {[%emt 0:01:18]} 8. a4 {[%emt 0:02:45]} c6 {[%emt 0:07:54]} 9. c5 {[%emt 0:07:47]} Ne8 {[%emt 0:06:44]} 10. Bxe7 {[%emt 0:03:30]} Qxe7 {[%emt 0:00:20]} 11. Bd3 {[%emt 0:01:00]} e5 {[%emt 0:03:51]} 12. Nxe5 {[%emt 0:10:23]} Nxe5 {[%emt 0:02:43]} 13. dxe5 {[%emt 0:00:30]} Qxe5 {[%emt 0:00:47]} 14. O-O f5 {[%emt 0:04:09]} 15. b4 {[%emt 0:09:08]} Rf6 {[%emt 0:04:29]} 16. Re1 {[%emt 0:06:57]} Rh6 {[%emt 0:03:41]} 17. h3 {[%emt 0:06:53]} Nf6 {[%emt 0:05:40]} 18. Ne2 {[%emt 0:07:37]} Ne4 {[%emt 0:08:29]} 19. Qc2 {[%emt 0:05:04]} Bd7 {[%emt 0:03:47]} 20. Rb1 {[%emt 0:07:22]} Rf8 {[%emt 0:07:23]} 21. b5 {[%emt 0:05:08]} axb5 {[%emt 0:02:28]} 22. axb5 {[%emt 0:00:32]} Qe7 {[%emt 0:01:53]} 23. Bxe4 {[%emt 0:06:30]} fxe4 {[%emt 0:01:17]} 24. bxc6 {[%emt 0:00:45]} bxc6 {[%emt 0:00:56]} 25. Ng3 {[%emt 0:05:02]} Rhf6 {[%emt 0:06:09]} 26. Rf1 {[%emt 0:01:20]} Be8 {[%emt 0:02:56]} 27. Rb6 {[%emt 0:01:51]} h5 {[%emt 0:01:26]} 28. Ne2 {[%emt 0:01:15]} h4 {[%emt 0:02:14]} 29. Nd4 {[%emt 0:01:24]} Rg6 {[%emt 0:01:25]} 30. Nb3 {[%emt 0:02:34]} Qg5 {[%emt 0:00:37]} 31. f3 {[%emt 0:03:16]} exf3 {[%emt 0:03:02]} 32. Qf2 {[%emt 0:01:10]} Qxg2+ {[%emt 0:00:44]} 33. Qxg2 {[%emt 0:00:06]} Rxg2+ {[%emt 0:00:07]} 34. Kh1 Rg3 {[%emt 0:00:22]} 35. Kh2 {[%emt 0:00:32]} Bd7 {[%emt 0:00:30]} 36. Nd4 {[%emt 0:00:48]} Bxh3 {[%emt 0:04:31]} 37. Rf2 {[%emt 0:00:29]} Bg2 {[%emt 0:00:55]} 38. Nxf3 {[%emt 0:01:24]} Bxf3 {[%emt 0:01:42]} 39. Rfb2 {[%emt 0:00:22]} Rf6 {[%emt 0:02:07]} 40. Rb8+ {[%emt 0:00:00]} Kh7 {[%emt 0:00:00]} 41. R8b3 {[%emt 0:01:13]} Be4 {[%emt 0:00:58]} 42. Rc3 {[%emt 0:00:35]} Rf1 {[%emt 0:00:19]} 43. Rd2 {[%emt 0:00:29]} Rh1# {[%emt 0:00:09]} 0-1

[Event "WYCC 2018 G14"]
[Site "Halkidiki"]
[Date "2018.10.24"]
[Round "6"]
[White "Ning, Kaiyu"]
[Black "Nurgali, Nazerke"]
[Result "1/2-1/2"]
[ECO "D37"]
[WhiteElo "2217"]
[BlackElo "2263"]
[Annotator "NA"]
[PlyCount "102"]
[EventDate "2018.10.20"]
[EventType "swiss"]
[EventCountry "GRE"]
[SourceTitle "playchess.com"]
[Source "ChessBase"]
[SourceQuality "1"]
[TimeControl "40/5400+30:1800+30"]

1. d4 {[%emt 0:00:00]} Nf6 {[%emt 0:00:00]} 2. c4 {[%emt 0:00:00]} e6 {[%emt 0:00:00]} 3. Nf3 {[%emt 0:00:00]} d5 {[%emt 0:00:13]} 4. Nc3 {[%emt 0:00:00]} Be7 {[%emt 0:00:11]} 5. Bg5 {[%emt 0:00:00]} h6 {[%emt 0:00:37]} 6. Bxf6 {[%emt 0:00:00]} Bxf6 {[%emt 0:00:15]} 7. e3 {[%emt 0:00:03]} O-O {[%emt 0:01:10]} 8. Rc1 {[%emt 0:00:03]} b6 {[%emt 0:01:24]} 9. cxd5 {[%emt 0:00:05]} exd5 {[%emt 0:00:11]} 10. Be2 {[%emt 0:00:11]} Bb7 {[%emt 0:06:59]} 11. b4 {[%emt 0:00:04]} c6 {[%emt 0:01:38]} 12. O-O {[%emt 0:00:16]} Nd7 {[%emt 0:01:37]} 13. Qb3 {[%emt 0:00:03]} a6 {[%emt 0:05:46]} 14. a4 {[%emt 0:00:01]} Be7 {[%emt 0:03:58]} 15. Rfd1 {[%emt 0:16:57]} Nf6 {[%emt 0:02:13]} 16. Ne5 $11 {[%emt 0:05:13]} Qd6 {[%emt 0:03:34]} 17. a5 {[%emt 0:06:38]} b5 {[%emt 0:06:03]} 18. Na2 {[%emt 0:01:14]} Nd7 {[%emt 0:04:18]} 19. f4 {[%emt 0:00:35]} Nxe5 {[%emt 0:05:47]} 20. dxe5 {[%emt 0:02:37]} Qg6 {[%emt 0:04:40]} 21. Bd3 {[%emt 0:03:47]} Qe6 {[%emt 0:07:40]} 22. Qb1 {[%emt 0:22:28]} f5 {[%emt 0:03:55]} 23. Qb2 {[%emt 0:00:47]} Rac8 {[%emt 0:08:55]} 24. Qd4 {[%emt 0:00:11]} Rc7 {[%emt 0:01:42]} 25. Rc3 {[%emt 0:01:33]} Rfc8 {[%emt 0:01:07]} 26. Rdc1 {[%emt 0:00:02]} Qf7 {[%emt 0:01:25]} 27. Be2 {[%emt 0:00:03]} Qf8 {[%emt 0:01:41]} 28. Bf3 {[%emt 0:00:14]} Kh8 {[%emt 0:02:11]} 29. Rc5 {[%emt 0:08:35]} Kh7 {[%emt 0:02:59]} 30. R1c2 {[%emt 0:00:40]} g6 {[%emt 0:02:00]} 31. Nc1 {[%emt 0:00:20]} Bxc5 {[%emt 0:00:34]} 32. Rxc5 {[%emt 0:00:48]} Rg7 {[%emt 0:00:26]} 33. Nd3 {[%emt 0:02:31]} Qe7 {[%emt 0:01:08]} 34. g3 {[%emt 0:02:59]} Rcg8 {[%emt 0:00:27]} 35. Kf2 {[%emt 0:02:02]} g5 {[%emt 0:02:49]} 36. Bd1 {[%emt 0:02:04]} h5 {[%emt 0:03:21]} 37. fxg5 {[%emt 0:00:22]} Qxg5 {[%emt 0:04:04]} 38. Ne1 {[%emt 0:00:28]} h4 {[%emt 0:00:59]} 39. Qxh4+ {[%emt 0:00:28]} Qxh4 {[%emt 0:00:03]} 40. gxh4 {[%emt 0:00:00]} Kh6 {[%emt 0:00:00]} 41. Bf3 {[%emt 0:03:43]} Re7 {[%emt 0:07:09]} 42. Nd3 {[%emt 0:00:52]} Rd8 {[%emt 0:01:29]} 43. Rc1 {[%emt 0:05:33]} Ba8 {[%emt 0:10:24]} 44. Rg1 {[%emt 0:06:07]} d4 {[%emt 0:02:47]} 45. Rg5 {[%emt 0:00:12]} c5 {[%emt 0:02:31]} 46. Rh5+ {[%emt 0:04:06]} Kg7 {[%emt 0:00:12]} 47. Rg5+ {[%emt 0:04:15]} Kh7 {[%emt 0:01:42]} 48. Rh5+ {[%emt 0:02:32]} Kg8 {[%emt 0:01:44]} 49. Rg5+ {[%emt 0:00:15]} Kh7 {[%emt 0:11:58]} 50. Rh5+ {[%emt 0:01:54]} Kg8 {[%emt 0:00:24]} 51. Rg5+ {[%emt 0:01:40]} Kh7 {[%emt 0:02:54]} 1/2-1/2

[Event "WYCC 2018 G14"]
[Site "Halkidiki"]
[Date "2018.10.24"]
[Round "6"]
[White "Divya Deshmukh"]
[Black "Jyothsna L"]
[Result "0-1"]
[ECO "D43"]
[WhiteElo "2180"]
[BlackElo "2060"]
[Annotator "NA"]
[PlyCount "76"]
[EventDate "2018.10.20"]
[EventType "swiss"]
[EventCountry "GRE"]
[SourceTitle "playchess.com"]
[Source "ChessBase"]
[SourceQuality "1"]
[TimeControl "40/5400+30:1800+30"]

1. d4 {[%emt 0:00:00]} d5 {[%emt 0:00:43]} 2. c4 {[%emt 0:00:00]} c6 {[%emt 0:00:06]} 3. Nc3 {[%emt 0:00:00]} Nf6 {[%emt 0:00:08]} 4. Nf3 {[%emt 0:00:00]} e6 {[%emt 0:00:12]} 5. g3 {[%emt 0:00:00]} Nbd7 {[%emt 0:00:25]} 6. Qd3 {[%emt 0:00:23]} b6 {[%emt 0:02:01]} 7. cxd5 {[%emt 0:01:39]} cxd5 {[%emt 0:01:44]} 8. Bg2 {[%emt 0:02:33]} Bb7 {[%emt 0:02:59]} 9. Bf4 {[%emt 0:01:11]} a6 {[%emt 0:04:58]} 10. O-O {[%emt 0:01:01]} Be7 {[%emt 0:04:24]} 11. Ne5 {[%emt 0:03:53]} Nxe5 {[%emt 0:14:15]} 12. dxe5 {[%emt 0:07:07]} Nd7 {[%emt 0:01:32]} 13. h4 {[%emt 0:01:37]} O-O {[%emt 0:06:35]} 14. Rfd1 {[%emt 0:03:10]} f6 {[%emt 0:11:31]} 15. exf6 {[%emt 0:27:11]} Bxf6 {[%emt 0:02:00]} 16. Rac1 {[%emt 0:17:11]} Rc8 {[%emt 0:19:50]} 17. b4 {[%emt 0:16:30]} Kh8 {[%emt 0:06:41]} 18. e4 {[%emt 0:08:49]} d4 {[%emt 0:11:11]} 19. Na4 {[%emt 0:05:01]} e5 {[%emt 0:01:45]} 20. Bd2 {[%emt 0:00:07]} Bc6 {[%emt 0:00:46]} 21. Nb2 {[%emt 0:00:21]} Bb5 {[%emt 0:03:18]} 22. Qb3 {[%emt 0:00:10]} Be2 {[%emt 0:00:32]} 23. Rxc8 {[%emt 0:00:34]} Qxc8 {[%emt 0:00:19]} 24. Rc1 {[%emt 0:00:02]} Qd8 {[%emt 0:00:16]} 25. a4 {[%emt 0:01:27]} Nb8 {[%emt 0:01:47]} 26. Bh3 {[%emt 0:00:51]} Qd6 {[%emt 0:00:21]} 27. Nc4 {[%emt 0:01:03]} Qc7 {[%emt 0:00:48]} 28. Nb2 {[%emt 0:01:31]} Qd6 {[%emt 0:00:02]} 29. b5 {[%emt 0:00:23]} a5 {[%emt 0:00:54]} 30. Nc4 {[%emt 0:00:06]} Qd8 {[%emt 0:00:30]} 31. Nb2 {[%emt 0:00:54]} Nd7 {[%emt 0:00:49]} 32. Bxd7 {[%emt 0:00:40]} Qxd7 {[%emt 0:00:03]} 33. Re1 {[%emt 0:00:16]} d3 {[%emt 0:00:43]} 34. Qa3 {[%emt 0:00:42]} Be7 {[%emt 0:00:31]} 35. Qb3 {[%emt 0:00:29]} Bc5 {[%emt 0:00:25]} 36. Rxe2 {[%emt 0:00:29]} dxe2 {[%emt 0:00:12]} 37. Be1 {[%emt 0:00:18]} Rxf2 {[%emt 0:00:23]} 38. Nd3 {[%emt 0:00:40]} Qxd3 {[%emt 0:00:18]} 0-1

[Event "WYCC 2018 G14"]
[Site "Halkidiki"]
[Date "2018.10.24"]
[Round "6"]
[White "Allahverdiyeva, Ayan"]
[Black "Zhu, Evelyn"]
[Result "1/2-1/2"]
[ECO "B43"]
[WhiteElo "2116"]
[BlackElo "1926"]
[Annotator "NA"]
[PlyCount "102"]
[EventDate "2018.10.20"]
[EventType "swiss"]
[EventCountry "GRE"]
[SourceTitle "playchess.com"]
[Source "ChessBase"]
[SourceQuality "1"]
[TimeControl "40/5400+30:1800+30"]

1. e4 c5 2. Nf3 e6 3. d4 cxd4 4. Nxd4 a6 5. Nc3 Qc7 6. g3 Nf6 7. Bg2 Nc6 8. O-O Nxd4 9. Qxd4 Bc5 10. Bf4 Bxd4 11. Bxc7 $16 {LiveBook: 6 Games} Bxc3 12. bxc3 d5 13. exd5 Nxd5 14. Be5 f6 15. c4 Ne7 16. Bd6 Nf5 17. Bc7 O-O 18. Rfd1 g5 19. c5 Rf7 20. Rd8+ Kg7 21. Bb6 Ne7 22. Rad1 Rf8 23. Rxf8 Kxf8 24. Rd8+ Kf7 25. h4 gxh4 26. gxh4 f5 27. Bc7 Nc6 28. Bxc6 bxc6 29. Be5 h5 30. Rh8 a5 31. a4 Kg6 32. Rg8+ Kh6 33. Bf4+ Kh7 34. Rg5 Ba6 35. Rxh5+ Kg7 36. Rh6 Bc4 37. h5 Rd8 38. Rg6+ Kh7 39. Rf6 Rg8+ 40. Kh2 Rg4 41. Rh6+ Kg7 42. Rg6+ Rxg6 43. hxg6 Be2 44. Bc7 Bd1 45. Bxa5 Bxc2 46. Bc3+ Kxg6 47. a5 Bd3 48. Kg3 Kf7 49. Kf4 Ke7 50. Ke5 Kd7 51. Kd4 Bf1 {Ke4} 1/2-1/2